[Event "Queens Festival Final-A 2022"]
[Site "Tornelo"]
[Date "2022.06.25"]
[Round "1.1"]
[White "Okuyaz, Duru"]
[Black "Ismayil, Malak"]
[Result "0-1"]
[ECO "C80"]
[WhiteElo "2090"]
[BlackElo "2001"]
[Annotator "NA RC"]
[PlyCount "70"]
[EventDate "2022.06.24"]
[EventType "tourn"]
[EventCountry "NET"]
[SourceTitle "playchess.com"]
[Source "ChessBase"]
[SourceQuality "1"]
[TimeControl "180+2"]

1. e4 {[%emt 0:00:02]} e5 {[%emt 0:00:06]} 2. Nf3 {[%emt 0:00:03]} Nc6 {[%emt 0:00:03]} 3. Bb5 {[%emt 0:00:01]} a6 {[%emt 0:00:02]} 4. Ba4 {[%emt 0:00:01]} Nf6 {[%emt 0:00:02]} 5. O-O {[%emt 0:00:01]} Nxe4 {[%emt 0:00:01]} 6. Re1 {[%emt 0:00:02]} Nc5 {[%emt 0:00:02]} 7. Nxe5 {[%emt 0:00:16]} Nxe5 {[%emt 0:00:10]} 8. Rxe5+ {[%emt 0:00:02]} Be7 {[%emt 0:00:02]} 9. Bb3 {[%emt 0:00:05]} Nxb3 {[%emt 0:00:04]} 10. axb3 {[%emt 0:00:01]} O-O {[%emt 0:00:01]} 11. d4 {[%emt 0:00:02]} Bf6 {[%emt 0:00:02]} 12. Re1 {[%emt 0:00:01]} d5 {[%emt 0:00:01]} 13. Bf4 {[%emt 0:00:03]} Bf5 {[%emt 0:00:02]} 14. Be5 {[%emt 0:00:22]} Re8 {[%emt 0:00:06]} 15. Nd2 {[%emt 0:00:09]} c5 {[%emt 0:00:12]} 16. c3 {[%emt 0:00:45]} cxd4 {[%emt 0:00:13]} 17. cxd4 {[%emt 0:00:01]} Qb6 {[%emt 0:00:07]} 18. Nf3 {[%emt 0:00:03]} Be4 {[%emt 0:00:04]} 19. Bxf6 {[%emt 0:00:01]} Qxf6 {[%emt 0:00:16]} 20. Ne5 {[%emt 0:00:01]} Qg5 {[%emt 0:00:06]} 21. f3 {[%emt 0:00:02]} Bf5 {[%emt 0:00:07]} 22. Kh1 {[%emt 0:00:01]} f6 {[%emt 0:00:01]} 23. Nd3 {[%emt 0:00:08]} Qh4 {[%emt 0:00:08]} 24. Rxe8+ {[%emt 0:00:08]} Rxe8 {[%emt 0:00:04]} 25. Nc5 {[%emt 0:00:01]} Qf2 {[%emt 0:00:21]} 26. Qg1 {[%emt 0:00:08]} Qxb2 {[%emt 0:00:07]} 27. Nxb7 {[%emt 0:00:02]} Re2 {[%emt 0:00:06]} 28. Nc5 {[%emt 0:00:01]} Rxg2 {[%emt 0:00:05]} 29. Qxg2 {[%emt 0:00:03]} Qxa1+ {[%emt 0:00:02]} 30. Qg1 {[%emt 0:00:01]} Qa2 {[%emt 0:00:12]} 31. Qe1 {[%emt 0:00:04]} h6 {[%emt 0:00:13]} 32. Nb7 {[%emt 0:00:03]} Qxb3 {[%emt 0:00:06]} 33. Nd6 {[%emt 0:00:15]} Qxf3+ {[%emt 0:00:02]} 34. Kg1 {[%emt 0:00:01]} Bh3 {[%emt 0:00:10]} 35. Qd2 {[%emt 0:00:05]} Qf1# {[%emt 0:00:03]} 0-1

[Event "Queens Festival Final-A 2022"]
[Site "Tornelo"]
[Date "2022.06.25"]
[Round "1.2"]
[White "Cori T., Deysi"]
[Black "Castrillon Gomez, Melissa"]
[Result "1-0"]
[ECO "A49"]
[WhiteElo "2367"]
[BlackElo "2198"]
[Annotator "TA"]
[PlyCount "71"]
[EventDate "2022.06.24"]
[EventType "tourn"]
[EventCountry "NET"]
[SourceTitle "playchess.com"]
[Source "ChessBase"]
[SourceQuality "1"]
[TimeControl "180+2"]

{[%evp 12,71,0,0,6,-1,0,-22,-14,-18,-17,-10,12,0,20,-120,41,31,10,17,183,168,197,154,199,133,143,88,111,23,17,16,76,81,315,276,549,534,504,347,335,250,260,170,391,370,389,385,918,916,911,900,918,872,847,841,840,836,29987,663,6187,2501]} 1. d4 {[%emt 0:00:02]} Nf6 {[%emt 0:00:05]} 2. Nf3 {[%emt 0:00:02]} g6 {[%emt 0:00:09]} 3. g3 {[%emt 0:00:02]} Bg7 {[%emt 0:00:01]} 4. Bg2 {[%emt 0:00:01]} O-O {[%emt 0:00:01]} 5. O-O {[%emt 0:00:01]} d6 {[%emt 0:00:01]} 6. Nbd2 {[%emt 0:00:01]} c5 {[%emt 0:00:04]} 7. c3 {[%emt 0:00:05]} cxd4 {[%emt 0:00:04] was the old line (7...Nc6). A49: 1 d4 Nf6 2 Nf3 g6 3 g3: Anti-King's Indian systems.} 8. cxd4 {[%emt 0:00:01]} Nc6 {[%emt 0:00:01]} 9. Nc4 {[%emt 0:00:11] [#]} Bd7 $146 {[%emt 0:00:07] The position is equal.} ({Predecessor:} 9... b5 10. Na3 Rb8 11. d5 Nb4 12. Nd4 Bb7 13. e4 a5 14. Naxb5 Ba6 15. a4 Qd7 {1-0 (56) Cori Tello,D (2389)-Arakhamia Grant,K (2350) Riadh 2017}) 10. b3 {[%emt 0:00:55]} Rc8 {[%emt 0:00:01]} 11. Bb2 {[%emt 0:00:02]} Na5 {[%emt 0:00:22]} 12. Ne3 {[%emt 0:00:05]} b6 {[%emt 0:00:24]} 13. d5 {[%emt 0:00:07] [#]} (13. Qd3 $11) 13... Nb7 $2 {[%emt 0:00:07]} (13... Nxd5 $1 $17 {[%mdl 512]} 14. Qxd5 Bxb2) 14. b4 {[%emt 0:00:07]} a5 {[%emt 0:00:10]} 15. a3 {[%emt 0:00:03]} Rc7 $2 {[%emt 0:00:11]} (15... Nxd5 $1 $11 16. Qxd5 Bxb2) 16. Nd4 $1 $18 {[%emt 0:00:02]} Qa8 {[%emt 0:00:27]} 17. Qb3 {[%emt 0:00:03]} Rfc8 {[%emt 0:00:08]} 18. h4 {[%emt 0:00:12]} (18. Nc6 $18) 18... Nd8 {[%emt 0:00:10] [#]} 19. Rfd1 {[%emt 0:00:14] White is more active.} ({White should try} 19. b5 $1) 19... Ng4 {[%emt 0:00:03]} 20. Bf3 {[%emt 0:00:05]} (20. Nxg4 $16 Bxg4 21. Qe3) 20... Ne5 $11 {[%emt 0:00:07]} 21. b5 {[%emt 0:00:12] Nc6 is the strong threat.} Nxf3+ {[%emt 0:00:18]} (21... a4 $11 22. Qa2 Nxf3+ 23. exf3 Bxd4 24. Bxd4 Bxb5) 22. exf3 $16 {[%emt 0:00:02] Black must now prevent Nc6.} Nb7 $2 {[%emt 0:00:12]} (22... a4 $16 {was necessary.} 23. Qd3 Nb7) 23. Nc6 $1 $18 {[%emt 0:00:03]} Be8 $2 {[%emt 0:00:06]} (23... Bxc6 {was worth a try.} 24. dxc6 (24. bxc6 Nc5 $16) 24... Nc5) 24. Bxg7 {[%emt 0:00:03]} Kxg7 {[%emt 0:00:01]} 25. Qc3+ {[%emt 0:00:02]} f6 {[%emt 0:00:03]} 26. Qd4 {[%emt 0:00:02] Threatens to win with Nc4.} ({Don't take} 26. Nc4 Bxc6 27. bxc6 Qa7 $18) 26... Nc5 {[%emt 0:00:02]} 27. Qf4 {[%emt 0:00:03]} e5 $2 {[%emt 0:00:19]} (27... h5 {might work better.} 28. g4 Bf7 29. gxh5 Rh8) 28. dxe6 $1 {[%emt 0:00:05][%cal Bd5e6,Be6e7][%mdl 32]} Bxc6 {[%emt 0:00:02]} 29. bxc6 {[%emt 0:00:02]} Rxc6 {[%emt 0:00:01]} (29... Nxe6 30. Qg4 (30. Qxd6 Qxc6 31. Qxc6 Rxc6 $16) 30... Re8) 30. Ng4 {[%emt 0:00:02]} Rf8 {[%emt 0:00:04]} 31. e7 {[%emt 0:00:05]} Rf7 {[%emt 0:00:01]} 32. Rxd6 {[%emt 0:00:03]} Rxd6 {[%emt 0:00:05]} 33. Qxd6 {[%emt 0:00:01]} Qe8 {[%emt 0:00:01]} 34. Re1 {[%emt 0:00:03] White wants to mate with Qd8.} h5 {[%emt 0:00:01]} 35. Ne3 {[%emt 0:00:03]} (35. Qd8 $142 Qxd8 36. exd8=Q Nb7 {[#]} 37. Qxb6 $1 hxg4 38. fxg4 Rd7 39. g5 fxg5 40. Qc6) 35... Qxe7 {[%emt 0:00:07] [#]} 36. Nf5+ $1 {[%emt 0:00:02][%mdl 512] Weighted Error Value: White=0.68/Black=0.83} 1-0

[Event "Queens Festival Final-A 2022"]
[Site "Tornelo"]
[Date "2022.06.25"]
[Round "1.3"]
[White "Song, Yuxin"]
[Black "Alboredo, Julia"]
[Result "1-0"]
[ECO "B31"]
[WhiteElo "2317"]
[BlackElo "2252"]
[Annotator "TA"]
[PlyCount "71"]
[EventDate "2022.06.24"]
[EventType "tourn"]
[EventCountry "NET"]
[SourceTitle "playchess.com"]
[Source "ChessBase"]
[SourceQuality "1"]
[TimeControl "180+2"]

{[%evp 26,70,32,31,28,35,33,21,12,14,17,24,18,24,275,7,34,35,57,46,39,41,27,35,85,77,63,14,143,0,265,0,478,471,1685,1655,29979,29981,29983,1723,29991,29992,29992,29992,29991,2431,29999]} 1. e4 {[%emt 0:00:02][%cal Be2e4,Be4e5][%mdl 32]} c5 {[%emt 0:00:05]} 2. Nf3 {[%emt 0:00:02]} Nc6 {[%emt 0:00:06]} 3. Bb5 {[%emt 0:00:02]} Nf6 {[%emt 0:00:03][%cal Bg8f6,Bf6d5,Bd5c7,Bc7e6][%mdl 32]} 4. e5 {[%emt 0:00:14]} Nd5 {[%emt 0:00:07]} 5. O-O {[%emt 0:00:02]} g6 {[%emt 0:00:04]} 6. Re1 {[%emt 0:00:03]} Bg7 {[%emt 0:00:02]} 7. Nc3 {[%emt 0:00:01]} Nc7 {[%emt 0:00:02]} 8. Bxc6 {[%emt 0:00:01]} dxc6 {[%emt 0:00:03]} 9. Ne4 {[%emt 0:00:02]} Ne6 {[%emt 0:00:13]} 10. d3 {[%emt 0:00:01]} O-O {[%emt 0:00:02]} 11. Be3 {[%emt 0:00:01]} b6 {[%emt 0:00:02]} 12. Qd2 {[%emt 0:00:01]} Nd4 {[%emt 0:00:04]} 13. Nxd4 {[%emt 0:00:02]} cxd4 {[%emt 0:00:02]} 14. Bh6 {[%emt 0:00:01]} Qd5 {[%emt 0:00:06] B31: Sicilian: 2...Nc6 3 Bb5 g6.} 15. Ng3 {[%emt 0:00:05]} c5 {[%emt 0:00:10]} 16. Re4 {[%emt 0:00:11] [#]} Bb7 $146 {[%emt 0:00:02] [#] The position is equal.} ({Predecessor:} 16... Re8 17. Bxg7 Kxg7 18. Rh4 Qxe5 19. Qh6+ Kg8 20. Qxh7+ Kf8 21. Qh8+ {1-0 (21) Ter Sahakyan,S (2563)-Villegas,P (2309) Chess.com INT 2017}) 17. Nf5 $1 {[%emt 0:00:12]} Bxh6 {[%emt 0:00:33]} (17... gxf5 $2 18. Qg5 $1) 18. Nxh6+ {[%emt 0:00:06]} Kg7 {[%emt 0:00:04]} 19. f3 {[%emt 0:00:14]} Rae8 $2 {[%emt 0:00:38][%mdl 8192]} (19... Qe6 $11 20. Re2 Rac8) 20. Rae1 $2 {[%emt 0:00:08]} (20. Ng4 $1 $18 {White wants to mate with Qh6+.} Kh8 21. Qh6) 20... Qe6 $11 {[%emt 0:00:14]} 21. Rh4 {[%emt 0:00:10]} Rh8 {[%emt 0:00:19]} 22. Qg5 {[%emt 0:00:27]} (22. Ng4 h5 23. Nf2 Qxa2 $17) 22... f6 {[%emt 0:00:08]} 23. Qg3 {[%emt 0:00:10]} f5 {[%emt 0:00:04]} 24. Qg5 {[%emt 0:00:11]} b5 {[%emt 0:00:09]} ({Black should play} 24... Rhf8 $14) 25. Rf4 {[%emt 0:00:04][%cal Rh6f5] Strongly threatening Nxf5+. White is more active.} Rhf8 {[%emt 0:00:05]} 26. b3 {[%emt 0:00:02]} (26. h4 $14) 26... Rd8 {[%emt 0:00:02] [#]} (26... Bd5 $1 $11) 27. Rh4 {[%emt 0:00:07]} (27. Rxf5 $1 $16 {[%mdl 512]} Rxf5 (27... c4 28. Rxf8) 28. Nxf5+ Kh8 29. Ng3 (29. Qxe7 Qxe7 30. Nxe7 Kg7 $17) (29. Nxe7 Rf8 $14)) 27... Rh8 $2 {[%emt 0:00:02][%mdl 8192]} (27... a5 $11) 28. Rh5 $2 {[%emt 0:00:23]} ({Weaker is} 28. Nxf5+ Qxf5 29. Qxe7+ Qf7 30. Rxh7+ (30. Qg5 $2 Rhe8 $17) 30... Rxh7 $11) (28. g4 $18 {[%cal Rg4f5]} f4 29. Nf5+ (29. Qxf4 Rhf8 $17) 29... Kg8 30. Nxe7+ (30. Qxe7 $2 Qxe7 31. Nxe7+ Kf7 $17) 30... Kf7 31. Nf5 $1 {[%mdl 512]}) 28... c4 $2 {[%emt 0:00:04][%mdl 8192] [#]} (28... Kf8 $11 {and Black has nothing to worry.} 29. Rh3 Ke8) 29. Nxf5+ $1 $18 {[%emt 0:00:06][%mdl 512]} Qxf5 {[%emt 0:00:04]} (29... Kg8 $142 30. Nxe7+ (30. Qxe7 Qxe7 31. Nxe7+ Kg7 $11) 30... Kf7) (29... Kf7 30. Qf4) 30. Qh6+ {[%emt 0:00:01]} Kg8 {[%emt 0:00:08]} 31. Rxf5 {[%emt 0:00:02]} gxf5 {[%emt 0:00:00]} 32. Qg5+ {[%emt 0:00:06]} (32. e6 $142 Rc8 33. Qh5 Kg7 34. Qf7+ Kh6 35. Qxe7 Rhg8 36. Qxb7 cxd3 37. cxd3) 32... Kf7 {[%emt 0:00:04]} 33. e6+ {[%emt 0:00:02]} Kf8 {[%emt 0:00:06]} 34. Qh6+ {[%emt 0:00:02]} Kg8 {[%emt 0:00:04]} 35. Qh5 {[%emt 0:00:03]} (35. Kf2 $142 Be4 36. fxe4 a5 37. exf5 Rd5 38. Re4 Rxf5+ 39. Kg3 Rg5+ 40. Qxg5+ Kf8 41. Rxd4 Ke8 42. Qh5+ Kf8 43. Qf7#) 35... Rf8 {[%emt 0:00:06]} 36. Qg5# {[%emt 0:00:02] Weighted Error Value: White=0.58/Black=1.57} 1-0

[Event "Queens Festival Final-A 2022"]
[Site "Tornelo"]
[Date "2022.06.25"]
[Round "1.4"]
[White "Gueci, Tea"]
[Black "Yuan, Ye"]
[Result "1-0"]
[ECO "E60"]
[WhiteElo "2248"]
[BlackElo "2108"]
[Annotator "TA"]
[PlyCount "83"]
[EventDate "2022.06.24"]
[EventType "tourn"]
[EventCountry "NET"]
[SourceTitle "playchess.com"]
[Source "ChessBase"]
[SourceQuality "1"]
[TimeControl "180+2"]

{[%evp 18,83,32,37,34,0,8,9,47,41,62,56,37,51,88,89,98,99,96,91,95,-39,-37,-44,-45,-81,-85,-96,-95,-95,-75,-86,-79,-87,42,-105,-100,-125,-113,-110,-72,-62,-71,-97,27,29,114,115,1403,256,418,408,427,402,29988,236,276,249,397,235,235,235,234,141,153,153,145,116]} 1. Nf3 {[%emt 0:00:05]} Nf6 {[%emt 0:01:38]} 2. b3 {[%emt 0:00:02]} g6 {[%emt 0:00:05]} 3. Bb2 {[%emt 0:00:02]} Bg7 {[%emt 0:00:01]} 4. e3 {[%emt 0:00:01]} O-O {[%emt 0:00:01]} 5. c4 {[%emt 0:00:01]} d6 {[%emt 0:00:01]} 6. Nc3 {[%emt 0:00:04]} c5 {[%emt 0:00:06]} 7. d4 {[%emt 0:00:04]} Nc6 {[%emt 0:00:06]} 8. Be2 {[%emt 0:00:03]} Bf5 {[%emt 0:00:04]} 9. O-O {[%emt 0:00:10]} Ne4 {[%emt 0:00:02]} 10. Nxe4 {[%emt 0:00:12]} Bxe4 {[%emt 0:00:03] [#] E60: King's Indian: Unusual lines and Fianchetto Variation without Nc3.} 11. a3 $146 {[%emt 0:00:02]} ({Predecessor:} 11. Qd2 e5 12. dxc5 dxc5 13. Rfd1 a5 14. Bc3 a4 15. bxa4 Rxa4 16. Qxd8 Rxd8 17. Rxd8+ Nxd8 18. Nd2 {½-½ (45) Demuth,A (2521)-Adly,A (2597) Brisbane 2017}) 11... a6 {[%emt 0:00:03]} 12. Rc1 {[%emt 0:00:06]} Na5 {[%emt 0:00:05] The position is equal.} 13. Bc3 {[%emt 0:00:10]} Rb8 {[%emt 0:00:06]} 14. b4 {[%emt 0:00:05]} cxb4 {[%emt 0:00:07]} 15. axb4 {[%emt 0:00:00]} Nc6 {[%emt 0:00:02]} 16. Qb3 {[%emt 0:00:20]} d5 {[%emt 0:00:09]} 17. Nd2 {[%emt 0:00:14]} dxc4 {[%emt 0:00:03]} 18. Bxc4 {[%emt 0:00:02]} Bf5 {[%emt 0:00:02]} 19. e4 {[%emt 0:00:16]} ({Better is} 19. d5 $16 Ne5 20. Be2) 19... Nxd4 $15 {[%emt 0:00:02]} 20. Bxd4 {[%emt 0:00:18]} Qxd4 {[%emt 0:00:04]} 21. exf5 {[%emt 0:00:08] Black must now prevent Nf3.} Qxd2 {[%emt 0:00:04]} 22. fxg6 {[%emt 0:00:01]} hxg6 {[%emt 0:00:03]} 23. Rfd1 {[%emt 0:00:02]} Qg5 {[%emt 0:00:01]} 24. Bd5 {[%emt 0:00:07]} b5 {[%emt 0:00:06]} 25. Rc7 {[%emt 0:00:09]} e6 {[%emt 0:00:05] [#]} (25... Be5 $17 26. Rd7 Rbc8) 26. Bf3 {[%emt 0:00:26]} (26. Bxe6 $1 $14 {is the one way to stay ahead.} Qf6 27. Bd5) 26... Qe5 $17 {[%emt 0:00:08]} 27. Rcd7 {[%emt 0:00:03]} Rbc8 {[%emt 0:00:05]} 28. Qa3 {[%emt 0:00:13]} Qc3 {[%emt 0:00:10]} 29. Qxa6 {[%emt 0:00:03]} Qxb4 {[%emt 0:00:01]} 30. Qb7 {[%emt 0:00:03][%cal Od7f7]} Qa4 {[%emt 0:00:06]} (30... Qc5 $17 {...b4 is the strong threat.} 31. R1d3 b4) 31. Rxf7 $1 $11 {[%emt 0:00:07]} Bd4 {[%emt 0:00:05] [#]} (31... Rxf7 $11 {keeps the balance.} 32. Qxc8+ Kh7) 32. Rd7 $1 $40 {[%emt 0:00:15][%mdl 128] White is out for blood.} Rxf3 $2 {[%emt 0:00:05][%mdl 8192] Black cannot hold the game after this.} 33. Qxc8+ {[%emt 0:00:01]} (33. Qxf3 $142 {White threatens Qf7+ and mate.} Rf8 34. R1xd4 Qa1+ 35. Rd1 Rxf3 36. Rxa1) 33... Rf8 $18 {[%emt 0:00:01][%cal Ra4d1]} 34. Qc1 {[%emt 0:00:06]} ({Don't take} 34. Rc1 Bxf2+ 35. Kh1 Qf4 $18) 34... Bxf2+ {[%emt 0:00:04]} 35. Kh1 {[%emt 0:00:01] Intending Qh6 and mate.} Be3 {[%emt 0:00:02] Inhibits Qh6.} (35... Qf4 $18 36. Qb2 Qf6 37. Qxb5 Be3) 36. Qc6 $2 {[%emt 0:00:03]} (36. Qxe3 {mates} Qc4 37. Kg1 Qa2 38. Rd8 e5 39. Rxf8+ Kxf8 40. Rd8+ Ke7 41. Qg5+ Kf7 42. Rd7+ Ke6 43. Re7+ Kd5 44. Qxe5+ Kc4 45. Rc7+ Kd3 46. Rc3+ Kd2 47. Qe3+ Kd1 48. Rc1#) 36... Qg4 {[%emt 0:00:08]} 37. h3 {[%emt 0:00:02]} Qf5 {[%emt 0:00:02]} (37... Qc4 $142 38. Qxc4 bxc4) 38. Rd8 {[%emt 0:00:01]} ({Weaker is} 38. Qc3 Bh6 39. Rb7 Rf7 40. Rb8+ Rf8 $18) (38. Re1 $142 Bc5 39. Qxb5) 38... Bh6 {[%emt 0:00:10] White is clearly better.} 39. Rxf8+ {[%emt 0:00:03]} Bxf8 {[%emt 0:00:01]} 40. Rd8 {[%emt 0:00:01]} Qf1+ {[%emt 0:00:02]} 41. Kh2 {[%emt 0:00:01]} Qf4+ {[%emt 0:00:01]} 42. Kg1 {[%emt 0:00:02] Weighted Error Value: White=0.68/Black=0.65} 1-0

[Event "Queens Festival Final-A 2022"]
[Site "Tornelo"]
[Date "2022.06.25"]
[Round "2.1"]
[White "Alboredo, Julia"]
[Black "Gueci, Tea"]
[Result "1/2-1/2"]
[ECO "B90"]
[WhiteElo "2252"]
[BlackElo "2248"]
[Annotator "TA"]
[PlyCount "95"]
[EventDate "2022.06.24"]
[EventType "tourn"]
[EventCountry "NET"]
[SourceTitle "playchess.com"]
[Source "ChessBase"]
[SourceQuality "1"]
[TimeControl "180+2"]

{[%evp 10,95,13,13,15,18,8,16,2,0,0,0,0,0,0,0,22,15,52,44,64,62,110,79,109,106,102,104,151,114,181,119,125,19,16,25,19,2,60,42,35,41,58,59,54,43,59,47,66,0,45,0,0,0,0,-1149,0,0,0,-382,-310,-326,-32,-34,-46,-32,0,0,0,0,100,-287,-254,-237,-243,-352,0,0,0,0,0,0,0,0,0,0,0,0]} 1. e4 {[%emt 0:00:02]} c5 {[%emt 0:00:05]} 2. Nf3 {[%emt 0:00:02][%cal Bg1f3,Bf3d4,Bd4f5][%mdl 32]} d6 {[%emt 0:00:01]} 3. d4 {[%emt 0:00:02]} cxd4 {[%emt 0:00:00]} 4. Nxd4 {[%emt 0:00:01]} Nf6 {[%emt 0:00:01]} 5. Nc3 {[%emt 0:00:01]} a6 {[%emt 0:00:01]} 6. a3 {[%emt 0:00:02]} e5 {[%emt 0:00:03] B90: Sicilian Najdorf: Unusual White 6th moves, 6 Be3 Ng4 and 6 Be3 e5.} 7. Nf5 $1 {[%emt 0:00:01] 7.Nf5 is better than 7.Nf3.} d5 {[%emt 0:00:01]} 8. Bg5 {[%emt 0:00:03][%cal Rc3d5]} d4 {[%emt 0:00:01]} 9. Bxf6 {[%emt 0:00:02]} gxf6 {[%emt 0:00:01]} 10. Nb1 {[%emt 0:00:02][%cal Bc3b1,Bb1d2,Bd2e4][%mdl 32]} (10. Bc4 $2 Bxf5 11. exf5 dxc3 $19) 10... Bxf5 {[%emt 0:00:02]} 11. exf5 {[%emt 0:00:00]} Qd5 {[%emt 0:00:01]} 12. Qd3 {[%emt 0:00:02]} Nc6 {[%emt 0:00:04]} 13. Nd2 {[%emt 0:00:06] [#] Prevents e4.} Be7 $146 {[%emt 0:00:21]} ({Predecessor:} 13... O-O-O 14. Be2 Kb8 15. Bf3 Qb5 16. Qxb5 axb5 17. Ne4 Be7 18. O-O Rc8 19. c3 Rhd8 {0-1 (59) Leszko,B (2321)-Ioannidis,E (2411) Tornelo INT 2020}) 14. Ne4 {[%emt 0:00:17]} Rd8 {[%emt 0:00:16]} 15. Be2 {[%emt 0:00:04][%cal Bf1e2,Be2f3,Bf3e4][%mdl 32]} Rg8 {[%emt 0:00:03]} (15... Qa5+ $14 {is more appropriate.} 16. Kf1 Qb6) 16. Bf3 {[%emt 0:00:03][%cal Oe4f6] Hoping for Nxf6+!} Qd7 {[%emt 0:00:03]} 17. O-O {[%emt 0:00:04]} Kf8 {[%emt 0:00:17]} 18. Ng3 {[%emt 0:00:04]} b5 {[%emt 0:00:20]} (18... Kg7 $142) 19. Be4 {[%emt 0:00:06]} Na5 {[%emt 0:00:04]} (19... Na7 $16) 20. b3 {[%emt 0:00:16]} ({White should try} 20. Qd2 $18 Nc4 21. Qh6+ Ke8 22. Qxh7) 20... Nb7 {[%emt 0:00:04]} 21. a4 {[%emt 0:00:13]} ({White should play} 21. Qd2 $16) 21... Nc5 $11 {[%emt 0:00:03][%csl LRa4,LRd3]} 22. Qf3 {[%emt 0:00:02] Black must now prevent Bc6.} bxa4 {[%emt 0:00:13]} 23. bxa4 {[%emt 0:00:10]} (23. Bc6 {is interesting.} e4 24. Bxe4 axb3 25. cxb3 d3 26. Rad1) 23... Rc8 {[%emt 0:00:21]} (23... Nxe4 $11 24. Qxe4 Rc8) 24. Rfb1 {[%emt 0:00:37]} (24. Bd3 $5) 24... Nxe4 {[%emt 0:00:16]} (24... Nxa4 $2 25. Rb7 Qe8 26. Qh5 $18) 25. Qxe4 {[%emt 0:00:00]} Qc6 {[%emt 0:00:10]} 26. Qxc6 {[%emt 0:00:06]} (26. Rb8 {is more complex.} Kg7 27. Nh5+ Kh8 28. Qxc6 Rxc6 29. Rb7) 26... Rxc6 {[%emt 0:00:00]} 27. Rb8+ {[%emt 0:00:02]} Kg7 {[%emt 0:00:04]} 28. Nh5+ {[%emt 0:00:01]} Kh8 $1 {[%emt 0:00:01]} 29. Rab1 {[%emt 0:00:09]} (29. Rb7 $14 Re8 30. Rab1) 29... h6 {[%emt 0:00:24]} 30. Rxg8+ {[%emt 0:00:11]} (30. R8b7 $5 {[%cal Rb7e7]} Re8 31. Rd7 $11) 30... Kxg8 $14 {[%emt 0:00:00][%mdl 4096] Endgame KRB-KRN} 31. Rb8+ {[%emt 0:00:03]} Kh7 {[%emt 0:00:09]} 32. Rb7 $2 {[%emt 0:00:04][%mdl 8192] [#]} (32. h3 $11) 32... Rxc2 $1 {[%emt 0:00:02]} 33. g4 {[%emt 0:00:01]} (33. h3 Ba3) 33... d3 {[%emt 0:00:10][%cal Bd4d3,Bd3d2][%mdl 32]} 34. Kg2 $2 {[%emt 0:00:28][%mdl 8192]} (34. Rxe7 $11 {and White is okay.} d2 35. Rxf7+ (35. Nxf6+ $2 Kg7 $19) 35... Kg8 36. Rd7 (36. Rg7+ $2 Kf8 $19) 36... Rc1+ 37. Kg2) 34... d2 $19 {[%emt 0:00:01]} 35. Rd7 {[%emt 0:00:06]} Bb4 $2 {[%emt 0:00:19]} (35... e4 $19 {[%cal Oe4e3] ...e3! is the strong threat.} 36. Kf1 Rc1+ 37. Ke2 Bb4 38. Rxd2 (38. Nxf6+ $2 Kg7 $19) 38... Bxd2 39. Kxd2 Ra1) 36. Nxf6+ $15 {[%emt 0:00:03]} Kg7 {[%emt 0:00:01]} 37. Ne4 {[%emt 0:00:01]} Rc1 {[%emt 0:00:04]} 38. Nxd2 {[%emt 0:00:15] And now Ne4 would win.} Rd1 {[%emt 0:00:01]} 39. f6+ {[%emt 0:00:01]} Kg6 {[%emt 0:00:01] [#]} (39... Kg8 $11 40. Rb7 (40. Rd8+ $2 Kh7 $19) 40... Bxd2) 40. Rb7 $2 {[%emt 0:00:06][%mdl 8192]} Bxd2 $19 {[%emt 0:00:02] KRB-KR} 41. Rd7 {[%emt 0:00:01]} e4 {[%emt 0:00:02] Strongly threatening ...a5.} ({Weaker is} 41... Kxf6 42. Kf3) 42. Rd6 {[%emt 0:00:08]} (42. a5 {was the only chance.}) 42... a5 $2 {[%emt 0:00:02]} (42... Kg5 $19 43. Rd7 Kxf6) 43. h4 $11 {[%emt 0:00:01] The position is equal.} h5 {[%emt 0:00:03]} 44. g5 {[%emt 0:00:07]} Kf5 {[%emt 0:00:03]} 45. Rd7 {[%emt 0:00:05]} Kg6 {[%emt 0:00:02]} 46. Rd6 {[%emt 0:00:01]} Kf5 {[%emt 0:00:02]} 47. Rd7 {[%emt 0:00:02]} Kg6 {[%emt 0:00:01]} 48. Rd6 {[%emt 0:00:06] What a fight!  Weighted Error Value: White=0.62/Black=0.65} 1/2-1/2